bitfinex/quotes_BTCUSD_20240605
["timestamp","ask_amount","ask_price","bid_price","bid_amount"]
[1717610848545,3.6952823,71608.0,71607.0,0.010504]
[1717610849362,3.83601812,71608.0,71607.0,0.010504]
[1717610849584,3.6952823,71608.0,71607.0,0.010504]
[1717610849795,3.6952823,71608.0,71607.0,0.009504]
[1717610850225,3.83597718,71608.0,71607.0,0.010504]
[1717610850683,3.84997718,71608.0,71607.0,0.010504]
[1717610851065,3.7092823,71608.0,71607.0,0.010504]
[1717610851302,1.52344193,71602.0,71600.0,0.009493]
[1717610851499,2.9076293,71602.0,71600.0,0.009493]
[1717610851676,3.21584602,71602.0,71600.0,0.009493]
[1717610852305,3.34082267,71602.0,71600.0,0.009493]
[1717610852514,1.25705593,71601.0,71600.0,0.009493]
[1717610852726,0.76941893,71594.0,71593.0,0.00122]
[1717610852990,1.48668271,71594.0,71593.0,0.00122]
[1717610854174,1.60479251,71594.0,71593.0,0.00122]
[1717610854402,2.19906471,71594.0,71593.0,0.00122]
[1717610854610,2.52576471,71594.0,71593.0,0.00122]
[1717610854816,2.77088258,71594.0,71593.0,0.00122]
[1717610855053,0.97781893,71592.0,71591.0,0.002]
[1717610855268,1.62698271,71592.0,71591.0,0.002]
[1717610855486,1.73102517,71592.0,71591.0,0.002]
[1717610855707,1.18850093,71585.0,71573.0,0.1519]
[1717610855924,1.92475544,71585.0,71573.0,0.1519]
[1717610856135,2.26859547,71585.0,71573.0,0.1519]
[1717610856563,1.87585062,71585.0,71573.0,0.1519]
[1717610856831,2.28942387,71585.0,71573.0,0.1519]
[1717610857020,2.71992387,71585.0,71573.0,0.1519]
[1717610857226,2.3687333,71585.0,71573.0,0.1519]
[1717610857432,2.51385117,71585.0,71571.0,0.002]
[1717610857673,2.51685117,71585.0,71571.0,0.002]
[1717610857919,2.76398684,71585.0,71571.0,0.002]
[1717610858132,2.72291395,71585.0,71571.0,0.002]
[1717610858344,2.61886897,71585.0,71571.0,0.002]
[1717610858726,2.30935062,71585.0,71571.0,0.002]
[1717610858921,2.37470299,71585.0,71571.0,0.002]
[1717610859113,2.35391754,71585.0,71571.0,0.002]
[1717610859315,2.45746849,71585.0,71571.0,0.002]
[1717610859670,2.49903541,71585.0,71571.0,0.002]
[1717610860331,1.18857593,71572.0,71571.0,0.002]
[1717610860552,0.729738,71562.0,71561.0,0.009515]
[1717610860772,0.87415693,71562.0,71561.0,0.009515]
[1717610860974,0.89715693,71562.0,71561.0,0.009515]
[1717610861172,1.06525693,71562.0,71561.0,0.009515]
[1717610861930,1.109269,71553.0,71543.0,0.23399651]
[1717610862060,1.109269,71553.0,71545.0,0.1664]
[1717610862061,1.72093414,71553.0,71545.0,0.1664]
[1717610862261,1.72093414,71553.0,71544.0,0.08]
[1717610862262,2.06151037,71553.0,71544.0,0.08]
[1717610862461,1.79668309,71553.0,71544.0,0.08]
[1717610863153,1.79668309,71553.0,71543.0,0.23399651]
[1717610864024,0.69869293,71552.0,71543.0,0.23399651]
[1717610864240,1.18370596,71552.0,71543.0,0.23399651]
[1717610864618,0.729774,71544.0,71543.0,0.23399651]
[1717610864820,0.89719293,71544.0,71543.0,0.23399651]
[1717610866213,1.06529293,71544.0,71543.0,0.23399651]
[1717610866412,1.07529293,71544.0,71543.0,0.23499651]
[1717610866620,1.07529293,71544.0,71543.0,0.22319651]
[1717610867075,1.08629293,71544.0,71543.0,0.22319651]
[1717610867866,0.211,71544.0,71543.0,0.22319651]
[1717610868087,0.021,71544.0,71543.0,0.59487758]
[1717610868611,0.1681,71551.0,71550.0,0.02]
[1717610868823,0.1681,71551.0,71543.0,0.22319651]
[1717610868824,0.1681,71551.0,71548.0,0.2299]
[1717610869038,0.1681,71551.0,71549.0,0.153]
[1717610869757,0.19,71553.0,71549.0,0.173]
[1717610869971,0.1681,71552.0,71549.0,0.153]
[1717610870634,0.023,71551.0,71549.0,0.173]
[1717610870836,0.023,71551.0,71549.0,0.153]
[1717610871270,0.023,71551.0,71549.0,0.173]
[1717610871499,0.023,71551.0,71549.0,0.153]
[1717610872135,0.023,71551.0,71549.0,0.155]
[1717610872353,0.023,71551.0,71549.0,0.153]
[1717610872564,0.139762,71550.0,71549.0,0.153]
[1717610872771,0.30718093,71550.0,71549.0,0.155]
[1717610873637,0.30718093,71550.0,71549.0,0.153]
[1717610873996,0.30818093,71550.0,71549.0,0.153]
[1717610874966,0.47628093,71550.0,71549.0,0.153]
[1717610875368,0.47628093,71550.0,71549.0,0.148946]
[1717610875726,0.33651893,71550.0,71549.0,0.148946]
[1717610876134,0.001,71550.0,71549.0,0.36952707]
[1717610877015,0.1681,71558.0,71549.0,0.36952707]
[1717610877275,0.329774,71544.0,71543.0,0.22219651]
[1717610877454,1.03222779,71544.0,71543.0,0.22219651]
[1717610877658,1.05522779,71544.0,71543.0,0.22219651]
[1717610878186,1.33477579,71544.0,71543.0,0.22219651]
[1717610878433,1.41419472,71544.0,71543.0,0.22219651]
[1717610878759,1.41419472,71544.0,71541.0,0.009504]
[1717610878760,0.71919693,71542.0,71541.0,0.009504]
[1717610878895,1.09713179,71542.0,71541.0,0.009504]
[1717610879097,1.26523179,71542.0,71541.0,0.009504]
[1717610879749,0.99713179,71542.0,71541.0,0.009504]
[1717610879924,0.94776437,71542.0,71541.0,0.011504]
[1717610880494,0.94776437,71542.0,71541.0,0.009504]
[1717610880910,0.94776437,71542.0,71541.0,0.014504]
[1717610881836,0.07246744,71542.0,71541.0,0.38238507]
[1717610882047,0.07247636,71549.0,71548.0,0.02]
[1717610882252,0.14441893,71554.0,71553.0,0.02]
[1717610882616,0.139756,71553.0,71552.0,0.1521]
[1717610882821,0.1681,71556.0,71552.0,0.1521]
[1717610882936,0.139756,71553.0,71552.0,0.1521]
[1717610883137,0.07246097,71553.0,71552.0,0.1521]
[1717610883333,0.139756,71553.0,71552.0,0.1521]
[1717610883597,0.07246097,71553.0,71552.0,0.1521]
[1717610883816,0.139756,71553.0,71552.0,0.1521]
[1717610884030,0.07246097,71553.0,71552.0,0.1501]
[1717610884268,0.139756,71553.0,71552.0,0.1501]
[1717610884499,0.21221697,71553.0,71552.0,0.1501]
[1717610884698,0.23521697,71553.0,71552.0,0.1501]
[1717610884972,0.23521697,71553.0,71552.0,0.15035]
[1717610885117,0.3796359,71553.0,71552.0,0.15035]
[1717610885316,0.3796359,71553.0,71552.0,0.14735]
[1717610885723,0.3796359,71553.0,71552.0,0.14935]
[1717610885927,0.3796359,71553.0,71552.0,0.00425]
[1717610886128,0.7796359,71553.0,71552.0,0.00225]
[1717610886736,0.7796359,71553.0,71552.0,0.00025]
[1717610886933,0.7796359,71553.0,71552.0,0.00225]
[1717610887136,1.07998909,71553.0,71552.0,0.00425]
[1717610887361,1.07998909,71553.0,71552.0,0.00225]
[1717610887362,1.07999512,71553.0,71552.0,0.00225]
[1717610887566,1.06951083,71553.0,71552.0,0.00225]
[1717610888593,0.52975483,71553.0,71552.0,0.02025]
[1717610888803,0.09546097,71553.0,71552.0,0.00225]
[1717610889022,0.23521697,71553.0,71552.0,0.00425]
[1717610889455,0.23521697,71553.0,71552.0,0.00225]
[1717610889677,0.66948823,71553.0,71552.0,0.00425]
[1717610890091,1.06948823,71553.0,71552.0,0.00225]
[1717610890482,1.17818925,71553.0,71552.0,0.00425]
[1717610891042,1.17818925,71553.0,71552.0,0.00225]
[1717610891822,1.17818925,71553.0,71552.0,0.00025]
[1717610892277,0.19,71547.0,71545.0,0.16005]
[1717610892497,0.66950223,71546.0,71545.0,0.16005]
[1717610892710,0.139778,71542.0,71541.0,0.009504]
[1717610892923,0.66951023,71542.0,71541.0,0.009504]
[1717610893495,0.67999522,71542.0,71541.0,0.009504]
[1717610893694,0.66951023,71542.0,71541.0,0.009504]
[1717610894087,0.66951023,71542.0,71541.0,0.011504]
[1717610895331,0.66951023,71542.0,71541.0,0.009504]
[1717610895733,0.66951023,71542.0,71541.0,0.011504]
[1717610895947,0.66951023,71542.0,71541.0,0.013504]
[1717610896132,0.66951023,71542.0,71541.0,0.009504]
[1717610896528,0.66951023,71542.0,71541.0,0.013504]
[1717610897219,0.76951023,71542.0,71541.0,0.013504]
[1717610897361,1.04906623,71542.0,71541.0,0.013504]
[1717610897533,1.25188176,71542.0,71541.0,0.013504]
[1717610897738,1.36436422,71542.0,71541.0,0.013504]
[1717610897990,1.33301736,71542.0,71541.0,0.013504]
[1717610898364,1.71632094,71542.0,71541.0,0.011504]
[1717610898564,1.51618387,71542.0,71541.0,0.011754]
[1717610898772,1.69199229,71542.0,71541.0,0.011754]
[1717610898972,1.41243629,71542.0,71541.0,0.013754]
[1717610899190,2.43606414,71542.0,71541.0,0.011754]
[1717610899425,2.43606414,71542.0,71541.0,0.009754]
[1717610899426,2.53606414,71542.0,71541.0,0.009754]
[1717610899629,2.64306414,71542.0,71541.0,0.011754]
[1717610899827,2.46964521,71542.0,71541.0,0.011754]
[1717610900037,2.12608921,71542.0,71541.0,0.011754]
[1717610900238,1.37841534,71542.0,71541.0,0.011754]
[1717610900471,0.96658277,71542.0,71541.0,0.011754]
[1717610900665,0.85360799,71542.0,71541.0,0.011754]
[1717610900865,1.03316399,71542.0,71541.0,0.011754]
[1717610901344,0.59276839,71542.0,71541.0,0.011754]
[1717610901558,0.65951023,71542.0,71541.0,0.011754]
[1717610901969,0.3696579,71542.0,71541.0,0.011754]
[1717610902608,0.3926579,71542.0,71541.0,0.011754]
[1717610903018,0.10846097,71542.0,71541.0,0.38103507]
[1717610903251,0.08546097,71542.0,71541.0,0.38103507]
[1717610903483,0.08546097,71542.0,71541.0,0.52081407]
[1717610903681,0.013,71542.0,71541.0,0.52081407]
[1717610904985,0.006,71542.0,71541.0,0.51981407]
[1717610905189,0.4715,71550.0,71541.0,0.44491407]
[1717610905368,0.4715,71550.0,71549.0,0.2633]
[1717610905950,0.6404,71550.0,71549.0,0.2633]
[1717610906156,0.75457923,71550.0,71549.0,0.2633]
[1717610906369,0.77541685,71550.0,71549.0,0.2633]
[1717610906759,0.77541685,71550.0,71549.0,0.38588107]
[1717610907148,0.71286755,71550.0,71549.0,0.38788107]
[1717610907354,0.77541685,71550.0,71549.0,0.2473]
[1717610908205,0.77541685,71550.0,71549.0,0.2453]
[1717610908417,0.77541685,71550.0,71549.0,0.2443]
[1717610908672,0.77541685,71550.0,71549.0,0.2643]
[1717610908835,0.77541685,71550.0,71549.0,0.38488107]
[1717610908998,0.77541685,71550.0,71549.0,0.38388107]
[1717610909204,0.4715,71550.0,71549.0,0.53659107]
[1717610909407,0.04177407,71555.0,71554.0,0.36023507]
[1717610909610,0.0625493,71557.0,71549.0,0.004946]
[1717610909611,0.1689,71568.0,71567.0,0.14058107]
[1717610909846,0.69034221,71568.0,71567.0,0.37448107]
[1717610910054,0.55089331,71568.0,71567.0,0.37448107]
[1717610910253,0.24135066,71568.0,71567.0,0.37448107]
[1717610910463,0.13507318,71568.0,71567.0,0.37448107]
[1717610910715,0.06262252,71571.0,71570.0,0.14058107]
[1717610910888,0.13506795,71571.0,71570.0,0.14058107]
[1717610911152,0.06262252,71571.0,71570.0,0.14058107]
[1717610911362,0.06262252,71571.0,71560.0,0.139742]
[1717610911363,0.1,71561.0,71560.0,0.139742]
[1717610911563,0.10040124,71561.0,71560.0,0.139742]
[1717610911978,0.1,71561.0,71560.0,0.139742]
[1717610912201,0.2,71559.0,71556.0,0.139748]
[1717610912411,0.2,71555.0,71552.0,0.01]
[1717610912617,0.2,71556.0,71555.0,0.139752]
[1717610912800,0.2,71552.0,71548.0,0.01]
[1717610913015,0.1,71550.0,71546.0,0.01]
[1717610913199,0.1,71550.0,71545.0,0.139772]
[1717610913200,0.2,71546.0,71545.0,0.139772]
[1717610913452,0.1,71550.0,71549.0,0.139764]
[1717610913632,0.3,71550.0,71549.0,0.239764]
[1717610914171,0.3,71550.0,71549.0,0.392264]
[1717610914649,0.3,71550.0,71549.0,0.2525]
[1717610914886,0.31,71550.0,71549.0,0.1525]
[1717610915093,0.3,71550.0,71549.0,0.1525]
[1717610915494,0.31,71550.0,71549.0,0.1525]
[1717610915694,0.31,71550.0,71549.0,0.1565]
[1717610916160,0.31040124,71550.0,71549.0,0.1545]
[1717610916394,0.31040124,71550.0,71549.0,0.1525]
[1717610916568,0.31040124,71550.0,71549.0,0.1545]
[1717610916773,0.5019,71550.0,71549.0,0.1525]
[1717610916975,0.50230124,71550.0,71549.0,0.1525]
[1717610917206,0.50230124,71550.0,71531.0,0.20159876]
[1717610917207,0.3,71537.0,71536.0,0.1616]
[1717610917427,0.31,71537.0,71536.0,0.1616]
[1717610918011,0.3,71537.0,71536.0,0.1616]
[1717610918324,0.31,71537.0,71536.0,0.1616]
[1717610918569,0.31,71537.0,71536.0,0.1636]
[1717610918915,0.31,71537.0,71536.0,0.1616]
[1717610919323,0.31,71537.0,71536.0,0.1636]
[1717610919530,0.31,71537.0,71536.0,0.1656]
[1717610919742,0.31,71537.0,71536.0,0.1636]
[1717610920324,0.31,71537.0,71536.0,0.1656]
[1717610920731,0.31,71537.0,71536.0,0.1636]
[1717610921101,0.31,71537.0,71536.0,0.1656]
[1717610921497,0.31,71537.0,71533.0,0.1528]
[1717610921498,0.1,71534.0,71533.0,0.1528]
[1717610921686,0.31040124,71534.0,71533.0,0.1528]
[1717610921886,0.31,71534.0,71533.0,0.1528]
[1717610922117,0.31040124,71534.0,71533.0,0.1528]
[1717610922732,0.31040124,71534.0,71533.0,0.1548]
[1717610923139,0.31040124,71534.0,71533.0,0.1568]
[1717610923314,0.31040124,71534.0,71533.0,0.004]
[1717610923739,0.30040124,71534.0,71533.0,0.004]
[1717610923941,0.30040124,71534.0,71533.0,0.002]
[1717610924142,0.31,71534.0,71533.0,0.004]
[1717610924518,0.33340124,71534.0,71533.0,0.004]
[1717610924731,0.65209424,71534.0,71533.0,0.004]
[1717610925164,0.77720442,71534.0,71533.0,0.004]
[1717610925378,0.7145819,71534.0,71533.0,0.002]
[1717610925564,0.7245819,71534.0,71533.0,0.002]
[1717610926076,0.7245819,71534.0,71531.0,0.002]
[1717610926077,0.449797,71532.0,71531.0,0.002]
[1717610926301,0.47319824,71532.0,71531.0,0.002]
[1717610926737,0.61761717,71532.0,71531.0,0.002]
[1717610927406,0.62761717,71532.0,71531.0,0.002]
[1717610927852,0.70010675,71532.0,71531.0,0.002]
[1717610928294,0.69010675,71532.0,71531.0,0.002]
[1717610928913,0.69010675,71532.0,71531.0,0.006]
[1717610930256,0.85900675,71532.0,71531.0,0.006]
[1717610930461,0.91073238,71532.0,71531.0,0.006]
[1717610930663,0.90073238,71532.0,71531.0,0.006]
[1717610930882,0.90073225,71532.0,71531.0,0.006]
[1717610933252,0.73183225,71532.0,71531.0,0.006]
[1717610933497,0.8282428,71532.0,71531.0,0.006]
[1717610933706,0.6593428,71532.0,71531.0,0.006]
[1717610933976,0.78651717,71532.0,71531.0,0.006]
[1717610934877,0.61761717,71532.0,71531.0,0.006]
[1717610935092,0.78651717,71532.0,71531.0,0.006]
[1717610935317,0.61761717,71532.0,71531.0,0.006]
[1717610935526,0.78651717,71532.0,71531.0,0.006]
[1717610936337,0.79651717,71532.0,71531.0,0.006]
[1717610936689,0.61761717,71532.0,71531.0,0.006]
[1717610936889,0.78651717,71532.0,71531.0,0.006]
[1717610938733,0.79651717,71532.0,71531.0,0.006]
[1717610939812,0.78651717,71532.0,71531.0,0.006]
[1717610942791,0.30040124,71532.0,71531.0,0.1567]
[1717610942962,0.30040124,71532.0,71531.0,0.19169599]
[1717610943176,0.30040124,71532.0,71531.0,0.19264199]
[1717610943708,0.44019824,71532.0,71531.0,0.19264199]
[1717610943920,0.31040124,71532.0,71531.0,0.11494199]
[1717610944134,0.30040124,71532.0,71531.0,0.11494199]
[1717610944959,0.30040124,71532.0,71531.0,0.11694199]
[1717610945361,0.10040124,71532.0,71531.0,0.11694199]
[1717610945562,0.1,71534.0,71533.0,0.215095]
[1717610945770,0.1,71534.0,71533.0,0.225095]
[1717610945771,0.10040124,71534.0,71533.0,0.225095]
[1717610945995,0.10040124,71534.0,71533.0,0.388295]
[1717610946207,0.3,71534.0,71533.0,0.2385]
[1717610946849,0.1,71534.0,71533.0,0.378295]
[1717610947062,0.1,71534.0,71533.0,0.380295]
[1717610947063,0.10040124,71534.0,71533.0,0.380295]
[1717610947278,0.10040124,71534.0,71533.0,0.2405]
[1717610947279,0.1,71534.0,71533.0,0.2405]
[1717610947449,0.10040124,71534.0,71533.0,0.2425]
[1717610947686,0.1,71534.0,71533.0,0.2425]
[1717610947859,0.10040124,71534.0,71533.0,0.2425]
[1717610948290,0.3,71534.0,71533.0,0.2425]
[1717610948497,0.30040124,71534.0,71533.0,0.2425]
[1717610948903,0.3,71534.0,71533.0,0.2425]
[1717610949131,0.1,71534.0,71533.0,0.2425]
[1717610949312,0.10040124,71534.0,71533.0,0.2525]
[1717610950159,0.1,71534.0,71533.0,0.392295]
[1717610950351,0.10040124,71534.0,71533.0,0.392295]
[1717610950549,0.3,71534.0,71533.0,0.382295]
[1717610950684,0.30040124,71534.0,71533.0,0.382295]
[1717610951324,0.10040124,71534.0,71533.0,0.392295]
[1717610951932,0.10086,71541.0,71540.0,0.01]
[1717610952137,0.10086,71541.0,71540.0,0.149781]
[1717610952617,0.10126124,71541.0,71540.0,0.139781]
[1717610953293,0.00086,71541.0,71540.0,0.151781]
[1717610953496,0.00086,71541.0,71540.0,0.153781]
[1717610953944,0.10086,71541.0,71540.0,0.153781]
[1717610954154,0.10086,71541.0,71540.0,0.004]
[1717610954155,0.30126124,71541.0,71540.0,0.004]
[1717610954361,0.31126124,71541.0,71540.0,0.004]
[1717610955942,0.33426124,71541.0,71540.0,0.004]
[1717610956353,0.62845917,71541.0,71540.0,0.004]
[1717610956938,0.62845917,71541.0,71540.0,0.002]
[1717610957135,0.62845917,71541.0,71531.0,0.000946]
[1717610957136,0.31040124,71532.0,71531.0,0.000946]
[1717610957366,0.33340124,71532.0,71531.0,0.000946]
[1717610958583,0.32340124,71532.0,71531.0,0.000946]
[1717610959235,0.33340124,71532.0,71531.0,0.000946]
[1717610959586,0.32340124,71532.0,71531.0,0.000946]
[1717610959789,0.33340124,71532.0,71531.0,0.002946]
[1717610960004,0.33340124,71532.0,71531.0,0.000946]
[1717610960206,0.33340124,71532.0,71531.0,0.002946]
[1717610960545,0.33340124,71532.0,71531.0,0.004946]
[1717610960803,0.33340124,71532.0,71531.0,0.000946]
[1717610961005,0.33340124,71532.0,71531.0,0.002946]
[1717610961252,0.33340124,71532.0,71531.0,0.004946]
[1717610963514,0.32340124,71532.0,71531.0,0.004946]
[1717610963714,0.32340124,71532.0,71531.0,0.165246]
[1717610963992,0.33340124,71532.0,71531.0,0.165246]
[1717610964834,0.32340124,71532.0,71531.0,0.305045]
[1717610965050,0.32340124,71532.0,71531.0,0.165246]
[1717610965411,0.32340124,71532.0,71531.0,0.305045]
[1717610965760,0.32340124,71532.0,71531.0,0.165246]
[1717610966197,0.10040124,71532.0,71531.0,0.305045]
[1717610966406,0.1,71536.0,71535.0,0.01]
[1717610966618,0.10040124,71536.0,71534.0,0.241]
[1717610966827,0.10040124,71536.0,71535.0,0.01]
[1717610967050,0.10040124,71536.0,71534.0,0.241]
[1717610967258,0.1,71536.0,71535.0,0.01]
[1717610967438,0.1,71536.0,71534.0,0.241]
[1717610967849,0.1,71536.0,71535.0,0.004]
[1717610967980,0.10040124,71536.0,71535.0,0.004]
[1717610968225,0.10040124,71536.0,71535.0,0.014]
[1717610968443,0.10040124,71536.0,71535.0,0.004]
[1717610968886,0.10040124,71539.0,71537.0,0.01]
[1717610969058,0.10040124,71539.0,71538.0,0.1675]
[1717610969269,0.00086,71541.0,71540.0,0.0903]
[1717610969465,0.00086,71541.0,71540.0,0.2546]
[1717610969674,0.00086,71541.0,71540.0,0.394381]
[1717610970776,0.00086,71541.0,71540.0,0.396381]
[1717610970992,0.00086,71541.0,71540.0,0.398381]
[1717610972817,0.20086,71541.0,71540.0,0.388381]
[1717610973021,0.00086,71541.0,71540.0,0.388381]
[1717610973913,0.00086,71541.0,71540.0,0.398381]
[1717610974288,0.00086,71541.0,71540.0,0.386381]
[1717610974873,0.00086,71541.0,71540.0,0.384381]
[1717610975119,0.00086,71541.0,71540.0,0.394381]
[1717610975301,0.00086,71541.0,71540.0,0.395381]
[1717610975751,0.00086,71541.0,71540.0,0.394381]
[1717610976160,0.00086,71541.0,71540.0,0.395381]
[1717610976384,0.00086,71541.0,71540.0,0.386381]
[1717610976810,0.20086,71541.0,71540.0,0.386381]
[1717610978096,0.30086,71541.0,71540.0,0.141781]
[1717610979109,0.10086,71541.0,71540.0,0.141781]
[1717610979326,0.10086,71541.0,71540.0,0.151781]
[1717610980946,0.10086,71541.0,71540.0,0.141781]
[1717610981544,0.10086,71541.0,71540.0,0.151781]
[1717610981690,0.10086,71541.0,71540.0,0.141781]
[1717610982293,0.30086,71541.0,71540.0,0.141781]
[1717610983993,0.31086,71541.0,71540.0,0.141781]
[1717610984421,0.31086,71541.0,71540.0,0.002]
[1717610984838,0.41106124,71541.0,71540.0,0.002]
[1717610985055,0.73716124,71541.0,71540.0,0.002]
[1717610985795,0.73716124,71541.0,71540.0,0.001]
[1717610986211,0.31,71534.0,71533.0,0.139795]
[1717610986609,0.1,71532.0,71531.0,0.000946]
[1717610986830,0.1,71532.0,71531.0,0.140745]
[1717610986831,0.3,71532.0,71531.0,0.140745]
[1717610987622,0.31,71532.0,71531.0,0.140745]
[1717610987897,0.31,71532.0,71531.0,0.141745]
[1717610988516,0.31,71532.0,71531.0,0.142745]
[1717610988928,0.3,71532.0,71531.0,0.142745]
[1717610989127,0.3,71532.0,71531.0,0.141745]
[1717610989334,0.31,71532.0,71531.0,0.141745]
[1717610989547,0.31,71532.0,71531.0,0.001946]
[1717610989765,0.31,71532.0,71531.0,0.002946]
[1717610989940,0.31,71532.0,71531.0,0.001946]
[1717610990345,0.31040124,71532.0,71531.0,0.002946]
[1717610990587,0.31040124,71532.0,71531.0,0.001946]
[1717610991007,0.31040124,71532.0,71531.0,0.002946]
[1717610991203,0.31,71532.0,71531.0,0.002946]
[1717610991913,0.33340124,71532.0,71531.0,0.002946]
[1717610995981,0.94333581,71532.0,71531.0,0.002946]
[1717610996196,1.10380091,71532.0,71531.0,0.002946]
[1717610996415,1.1874322,71532.0,71531.0,0.002946]
[1717610996861,1.11380091,71532.0,71531.0,0.002946]
[1717610997300,1.19740868,71532.0,71531.0,0.001946]
[1717610997510,1.19740868,71532.0,71531.0,0.000946]
[1717610997729,1.19740868,71532.0,71531.0,0.001946]
[1717610997972,1.30380091,71532.0,71531.0,0.000946]
[1717610998182,1.30380091,71532.0,71531.0,0.001946]
[1717610998393,1.31380091,71532.0,71531.0,0.001946]
[1717610998844,1.31380509,71532.0,71531.0,0.000946]
[1717610999053,1.31380509,71532.0,71531.0,0.001946]
[1717610999470,1.31380509,71532.0,71531.0,0.002946]
[1717610999682,1.30380509,71532.0,71531.0,0.001946]
[1717611000098,1.30380509,71532.0,71531.0,0.002946]
[1717611000274,1.29380509,71532.0,71531.0,0.002946]
[1717611001455,1.37738706,71532.0,71531.0,0.002946]
[1717611001861,1.29380509,71532.0,71531.0,0.002946]
[1717611002195,1.22131717,71532.0,71531.0,0.002946]
[1717611002374,1.26310074,71532.0,71531.0,0.002946]
[1717611002572,1.22131717,71532.0,71531.0,0.002946]
[1717611003274,1.23131717,71532.0,71531.0,0.002946]
[1717611003696,1.27309835,71532.0,71531.0,0.002946]
[1717611004089,1.17179835,71532.0,71531.0,0.002946]
[1717611004306,1.18179694,71532.0,71531.0,0.002946]
[1717611004510,1.14001717,71532.0,71531.0,0.002946]
[1717611004710,1.29606172,71532.0,71531.0,0.002946]
[1717611005444,1.21250218,71532.0,71531.0,0.002946]
[1717611005708,1.49209718,71532.0,71531.0,0.002946]
[1717611005916,1.69794661,71532.0,71531.0,0.002946]
[1717611006325,1.76249718,71532.0,71531.0,0.002946]
[1717611006525,1.59349718,71532.0,71531.0,0.002946]
[1717611008189,1.69788015,71532.0,71531.0,0.002946]
[1717611009196,1.69349718,71532.0,71531.0,0.002946]
[1717611009415,1.98347829,71532.0,71531.0,0.002946]
[1717611009620,1.81447829,71532.0,71531.0,0.002946]
[1717611009829,1.69349718,71532.0,71531.0,0.002946]
[1717611010045,1.79785743,71532.0,71531.0,0.002946]
[1717611010244,1.62885743,71532.0,71531.0,0.002946]
[1717611010448,1.69349718,71532.0,71531.0,0.002946]
[1717611010891,1.79785743,71532.0,71531.0,0.002946]
[1717611011207,1.69349718,71532.0,71531.0,0.002946]
[1717611012075,1.68349718,71532.0,71531.0,0.002946]
[1717611012275,1.77694573,71532.0,71531.0,0.002946]
[1717611012790,1.69349718,71532.0,71531.0,0.002946]
[1717611013247,1.76693879,71532.0,71531.0,0.002946]
[1717611013652,1.75607305,71532.0,71531.0,0.002946]
[1717611015244,1.69349718,71532.0,71531.0,0.002946]
[1717611016544,1.68350255,71532.0,71531.0,0.002946]
[1717611016747,1.46350255,71532.0,71531.0,0.002946]
[1717611016957,1.68350255,71532.0,71531.0,0.002946]
[1717611017366,1.69350255,71532.0,71531.0,0.002946]
[1717611018367,1.98346403,71532.0,71531.0,0.002946]
[1717611019897,2.06690564,71532.0,71531.0,0.002946]
[1717611020611,1.98346403,71532.0,71531.0,0.002946]
[1717611020907,2.06690191,71532.0,71531.0,0.002946]
[1717611021142,2.04604095,71532.0,71531.0,0.002946]
[1717611021392,1.98346403,71532.0,71531.0,0.002946]
[1717611022288,2.04604616,71532.0,71531.0,0.002946]
[1717611022487,1.86704616,71532.0,71531.0,0.002946]
[1717611022726,2.04604616,71532.0,71531.0,0.002946]
[1717611023732,1.98346403,71532.0,71531.0,0.002946]
[1717611024600,2.06690191,71532.0,71531.0,0.002946]
[1717611024969,1.98346403,71532.0,71531.0,0.002946]
[1717611025374,2.09220364,71532.0,71531.0,0.002946]
[1717611026341,2.09220756,71532.0,71531.0,0.002946]
[1717611026990,1.67281556,71532.0,71531.0,0.002946]
[1717611028032,1.57141556,71532.0,71531.0,0.002946]
[1717611032496,1.69657239,71532.0,71531.0,0.002946]
[1717611033128,1.91744297,71532.0,71531.0,0.002946]
[1717611033333,1.99504297,71532.0,71531.0,0.002946]
[1717611033738,1.56141556,71532.0,71531.0,0.002946]
[1717611034812,1.57141556,71532.0,71531.0,0.002946]
[1717611035238,2.13049321,71532.0,71531.0,0.002946]
[1717611035464,2.00502244,71532.0,71531.0,0.002946]
[1717611035678,1.99502244,71532.0,71531.0,0.002946]
[1717611035900,2.12054297,71532.0,71531.0,0.002946]
[1717611036169,1.68693609,71532.0,71531.0,0.002946]
[1717611036365,2.12053775,71532.0,71531.0,0.002946]
[1717611036796,1.68693609,71532.0,71531.0,0.002946]
[1717611037005,1.61933609,71532.0,71531.0,0.002946]
[1717611037216,1.70505214,71532.0,71531.0,0.002946]
[1717611037641,1.99501474,71532.0,71531.0,0.002946]
[1717611038196,2.01184671,71532.0,71531.0,0.002946]
[1717611038627,1.99500711,71532.0,71531.0,0.002946]
[1717611039506,1.90290711,71532.0,71531.0,0.002946]
[1717611039706,1.90290711,71532.0,71531.0,0.220145]
[1717611039707,0.4628574,71532.0,71531.0,0.220145]
[1717611039937,0.0728948,71532.0,71531.0,0.220145]
[1717611040104,0.30040124,71532.0,71531.0,0.372845]
[1717611040301,0.10040124,71532.0,71531.0,0.372845]
[1717611040572,0.1,71532.0,71531.0,0.372845]
[1717611040983,0.1,71532.0,71531.0,0.382845]
[1717611041197,0.10040124,71535.0,71534.0,0.2566]
[1717611041398,0.10040124,71535.0,71534.0,0.396393]
[1717611041966,0.10126124,71541.0,71540.0,0.394881]
[1717611042141,0.00126124,71541.0,71540.0,0.394881]
[1717611042542,0.10126124,71541.0,71540.0,0.394881]
[1717611042742,0.10126124,71541.0,71540.0,0.384881]
[1717611043173,0.37886124,71541.0,71540.0,0.384881]
[1717611043375,0.37886124,71541.0,71540.0,0.385881]
[1717611043576,0.36886124,71541.0,71540.0,0.385881]
[1717611043844,0.12426124,71541.0,71540.0,0.385881]
[1717611044348,0.10126124,71541.0,71540.0,0.395881]
[1717611044549,0.10126124,71541.0,71540.0,0.396881]
[1717611044754,0.00086,71541.0,71540.0,0.676444]
[1717611044965,0.00126124,71541.0,71540.0,0.675444]